fUST/lending_fUST_20240423
["ID","MTS","AMOUNT","RATE_DAILY","PERIOD"]
[323255838,1713851445871,-506.57115062,0.00024657,2]
[323255839,1713851445881,-500.0,0.00024657,2]
[323255840,1713851445890,-500.0,0.00024657,2]
[323255841,1713851445898,-500.0,0.00024657,2]
[323255842,1713851445907,-500.0,0.00024657,2]
[323255843,1713851445916,-500.0,0.00024657,2]
[323255844,1713851445926,-500.0,0.00024657,2]
[323255845,1713851445935,-500.0,0.00024657,2]
[323255846,1713851445944,-507.00416124,0.00024657,2]
[323255847,1713851445953,-500.0,0.00024657,2]
[323255848,1713851445962,-500.0,0.00024657,2]
[323255849,1713851445971,-595.18,0.00024657,2]
[323255850,1713851445980,-503.65356665,0.00024657,2]
[323255851,1713851445988,-512.02119366,0.00024657,2]
[323255852,1713851445997,-500.0,0.00024657,2]
[323255853,1713851446007,-500.0,0.00024657,2]
[323255854,1713851446016,-500.0,0.00024657,2]
[323255855,1713851446025,-500.0,0.00024657,2]
[323255856,1713851446034,-576.84,0.00024657,2]
[323255857,1713851446043,-535.2,0.00024657,2]
[323255858,1713851446052,-504.60895171,0.00024657,2]
[323255859,1713851446061,-500.0,0.00024657,2]
[323255860,1713851446070,-600.05,0.00024657,2]
[323255861,1713851446079,-500.0,0.00024657,2]
[323255862,1713851446088,-500.0,0.00024657,2]
[323255863,1713851446097,-500.0,0.00024657,2]
[323255864,1713851446106,-500.0,0.00024657,2]
[323255865,1713851446115,-500.0,0.00024657,2]
[323255866,1713851446124,-500.0,0.00024657,2]
[323255867,1713851446134,-500.0,0.00024657,2]
[323255868,1713851446143,-500.0,0.00024657,2]
[323255869,1713851446151,-500.0,0.00024657,2]
[323255870,1713851446161,-500.0,0.00024657,2]
[323255871,1713851446170,-500.0,0.00024657,2]
[323255872,1713851446179,-500.0,0.00024657,2]
[323255873,1713851446188,-500.0,0.00024657,2]
[323255874,1713851446197,-500.0,0.00024657,2]
[323255875,1713851446206,-500.0,0.00024657,2]
[323255876,1713851446215,-500.0,0.00024657,2]
[323255877,1713851446224,-500.0,0.00024657,2]
[323255878,1713851446233,-500.0,0.00024657,2]
[323255879,1713851446242,-500.0,0.00024657,2]
[323255880,1713851446251,-500.0,0.00024657,2]
[323255881,1713851446260,-500.0,0.00024657,2]
[323255883,1713851446269,-500.0,0.00024657,2]
[323255885,1713851446278,-500.0,0.00024657,2]
[323255887,1713851446287,-500.0,0.00024657,2]
[323255889,1713851446296,-500.0,0.00024657,2]
[323255891,1713851446305,-500.0,0.00024657,2]
[323255892,1713851446314,-500.0,0.00024657,2]
[323255893,1713851446322,-500.0,0.00024657,2]
[323255894,1713851446331,-502.93859288,0.00024657,2]
[323255895,1713851446340,-500.0,0.00024657,2]
[323255896,1713851446349,-225.10849357,0.00024657,2]
[323255897,1713851446358,-501.06353826,0.00024657,2]
[323255898,1713851446367,-500.0,0.00024657,2]
[323255899,1713851446375,-500.0,0.00024657,2]
[323255900,1713851446385,-521.22655881,0.00024657,2]
[323255901,1713851446481,-523.67301972,0.00024657,2]
[323255903,1713851446491,-500.0,0.00024657,2]
[323255905,1713851446500,-500.0,0.00024657,2]
[323255906,1713851446511,-502.50957193,0.00024657,2]
[323255908,1713851446520,-500.0,0.00024657,2]
[323255910,1713851446529,-509.42891898,0.00024657,2]
[323255912,1713851446538,-500.0,0.00024657,2]
[323255914,1713851446547,-500.0,0.00024657,2]
[323255916,1713851446557,-1033.99,0.00024657,2]
[323255918,1713851446566,-500.0,0.00024657,2]
[323255920,1713851446575,-500.0,0.00024657,2]
[323255923,1713851446585,-500.0,0.00024657,2]
[323255924,1713851446597,-503.45395007,0.00024657,2]
[323255926,1713851446606,-500.0,0.00024657,2]
[323255928,1713851446615,-500.0,0.00024657,2]
[323255930,1713851446625,-1922.27,0.00024657,2]
[323255932,1713851446635,-500.0,0.00024657,2]
[323255933,1713851446644,-500.0,0.00024657,2]
[323255934,1713851446653,-507.78730634,0.00024657,2]
[323255935,1713851446663,-500.0,0.00024657,2]
[323255936,1713851446672,-200.01273234,0.00024657,2]
[323255937,1713851446681,-500.0,0.00024657,2]
[323255938,1713851446723,-505.22560722,0.00024657,2]
[323255939,1713851446733,-500.0,0.00024657,2]
[323255940,1713851446742,-500.0,0.00024657,2]
[323255941,1713851446751,-500.0,0.00024657,2]
[323255942,1713851446761,-500.0,0.00024657,2]
[323255943,1713851446771,-500.0,0.00024657,2]
[323255944,1713851446780,-500.0,0.00024657,2]
[323255945,1713851446789,-500.0,0.00024657,2]
[323255946,1713851446799,-500.0,0.00024657,2]
[323255947,1713851446808,-500.0,0.00024657,2]
[323255948,1713851446817,-500.0,0.00024657,2]
[323255949,1713851446826,-500.0,0.00024657,2]
[323255950,1713851446835,-500.0,0.00024657,2]
[323255951,1713851446845,-500.0,0.00024657,2]
[323255952,1713851446854,-517.65754486,0.00024657,2]
[323255953,1713851446863,-500.0,0.00024657,2]
[323255954,1713851446872,-500.0,0.00024657,2]
[323255955,1713851446882,-510.76098978,0.00024657,2]
[323255956,1713851446891,-500.0,0.00024657,2]
[323255957,1713851446901,-500.0,0.00024657,2]
[323255958,1713851446910,-319.68311335,0.00024657,2]
[323255959,1713851446919,-500.0,0.00024657,2]
[323255960,1713851446928,-500.0,0.00024657,2]
[323255961,1713851446938,-500.0,0.00024657,2]
[323255962,1713851446947,-500.0,0.00024657,2]
[323255963,1713851446956,-489.59042332,0.00024657,2]
[323255964,1713851446965,-500.78311264,0.00024657,2]
[323255965,1713851446974,-500.0,0.00024657,2]
[323255966,1713851446983,-500.0,0.00024657,2]
[323255967,1713851446992,-500.0,0.00024657,2]
[323255968,1713851447001,-500.0,0.00024657,2]
[323255969,1713851447010,-500.0,0.00024657,2]
[323255970,1713851447019,-582.08,0.00024657,2]
[323255971,1713851447029,-501.11342184,0.00024657,2]
[323255972,1713851447038,-500.0,0.00024657,2]
[323255973,1713851447047,-500.0,0.00024657,2]
[323255974,1713851447056,-503.80700565,0.00024657,2]
[323255975,1713851447064,-500.0,0.00024657,2]
[323255976,1713851447073,-500.65393822,0.00024657,2]
[323255977,1713851447083,-500.0,0.00024657,2]
[323255978,1713851447091,-500.0,0.00024657,2]
[323255979,1713851447101,-2115.36016006,0.00024657,2]
[323255980,1713851447109,-500.0,0.00024657,2]
[323255981,1713851447118,-500.0,0.00024657,2]
[323255982,1713851447127,-500.0,0.00024657,2]
[323255983,1713851447137,-501.0047556,0.00024657,2]
[323255984,1713851447145,-500.0,0.00024657,2]
[323255985,1713851447155,-512.21507158,0.00024657,2]
[323255986,1713851447164,-500.0,0.00024657,2]
[323255987,1713851447173,-500.0,0.00024657,2]
[323255988,1713851447182,-502.34045167,0.00024657,2]
[323255989,1713851447191,-505.28574678,0.00024657,2]
[323255990,1713851447200,-500.0,0.00024657,2]
[323255991,1713851447209,-500.0,0.00024657,2]
[323255992,1713851447218,-536.01501714,0.00024657,2]
[323255993,1713851447227,-541.55533202,0.00024657,2]
[323255994,1713851447236,-512.92,0.00024657,2]
[323255995,1713851447245,-500.0,0.00024657,2]
[323255996,1713851447254,-500.68301876,0.00024657,2]
[323255997,1713851447263,-500.0,0.00024657,2]
[323255998,1713851447272,-700.76,0.00024657,2]
[323255999,1713851447281,-500.5559219,0.00024657,2]
[323256000,1713851447290,-503.03340588,0.00024657,2]
[323256001,1713851447299,-500.0,0.00024657,2]
[323256002,1713851447309,-500.0,0.00024657,2]
[323256003,1713851447318,-500.0,0.00024657,2]
[323256004,1713851447328,-501.199714,0.00024657,2]
[323256005,1713851447336,-502.40858729,0.00024657,2]
[323256006,1713851447346,-1993.2,0.00024657,2]
[323256007,1713851447355,-500.0,0.00024657,2]
[323256008,1713851447364,-500.0,0.00024657,2]
[323256009,1713851447373,-564.48226089,0.00024657,2]
[323256010,1713851447383,-506.44597155,0.00024657,2]
[323256011,1713851447392,-500.0,0.00024657,2]
[323256012,1713851447401,-504.60718698,0.00024657,2]
[323256013,1713851447410,-501.37614669,0.00024657,2]
[323256014,1713851447419,-527.24897209,0.00024657,2]
[323256015,1713851447428,-500.0,0.00024657,2]
[323256016,1713851447437,-587.2935791,0.00024657,2]
[323256017,1713851447446,-500.0,0.00024657,2]
[323256018,1713851447455,-500.0,0.00024657,2]
[323256019,1713851447464,-11767.66,0.00024657,2]
[323256020,1713851447473,-500.0,0.00024657,2]
[323256021,1713851447482,-500.0,0.00024657,2]
[323256022,1713851447491,-500.0,0.00024657,2]
[323256023,1713851447501,-500.0,0.00024657,2]
[323256024,1713851447510,-500.0,0.00024657,2]
[323256025,1713851447521,-500.0,0.00024657,2]
[323256026,1713851447530,-500.0,0.00024657,2]
[323256027,1713851447540,-637.08,0.00024657,2]
[323256028,1713851447551,-500.0,0.00024657,2]
[323256029,1713851447561,-1007.38511649,0.00024657,2]
[323256030,1713851447570,-500.0,0.00024657,2]
[323256031,1713851447578,-500.0,0.00024657,2]
[323256032,1713851447587,-501.10573976,0.00024657,2]
[323256033,1713851447598,-500.0,0.00024657,2]
[323256034,1713851447607,-503.5711302,0.00024657,2]
[323256035,1713851447616,-500.0,0.00024657,2]
[323256036,1713851447625,-150.16702039,0.00024657,2]
[323256037,1713851447635,-2267.26,0.00024657,2]
[323256038,1713851447645,-500.0,0.00024657,2]
[323256039,1713851447654,-565.28551278,0.00024657,2]
[323256040,1713851447663,-501.04,0.00024657,2]
[323256041,1713851447673,-500.0,0.00024657,2]
[323256042,1713851447682,-501.23957139,0.00024657,2]
[323256043,1713851447692,-668.91,0.00024657,2]
[323256044,1713851447701,-500.0,0.00024657,2]
[323256045,1713851447710,-508.47859837,0.00024657,2]
[323256046,1713851447719,-559.20469861,0.00024657,2]
[323256047,1713851447729,-503.95935748,0.00024657,2]
[323256048,1713851447739,-508.10545757,0.00024657,2]
[323256049,1713851447748,-503.49274619,0.00024657,2]
[323256050,1713851447757,-506.45794375,0.00024657,2]
[323256051,1713851447766,-1549.31,0.00024657,2]
[323256052,1713851447775,-2048.54,0.00024657,2]
[323256053,1713851447784,-500.0,0.00024657,2]
[323256054,1713851447794,-503.95043463,0.00024657,2]
[323256055,1713851447803,-213.31290659,0.00024657,2]
[323256056,1713851447812,-500.0,0.00024657,2]
[323256057,1713851447821,-500.1359114,0.00024657,2]
[323256058,1713851447830,-500.0,0.00024657,2]
[323256059,1713851447840,-529.5,0.00024657,2]
[323256060,1713851447849,-387.3328185,0.00024657,2]
[323256061,1713851447858,-500.0,0.00024657,2]
[323256062,1713851447868,-506.25801087,0.00024657,2]
[323256063,1713851447878,-500.78417883,0.00024657,2]
[323256064,1713851447888,-500.0,0.00024657,2]
[323256065,1713851447897,-500.0,0.00024657,2]
[323256066,1713851447906,-500.0,0.00024657,2]
[323256067,1713851447915,-500.0,0.00024657,2]
[323256068,1713851447924,-506.02372272,0.00024657,2]
[323256069,1713851447934,-507.35852408,0.00024657,2]
[323256070,1713851447943,-500.0,0.00024657,2]
[323256071,1713851447954,-507.77217621,0.00024657,2]
[323256072,1713851447963,-500.0,0.00024657,2]
[323256073,1713851447972,-496.70429932,0.00024657,2]
[323256074,1713851447981,-500.0,0.00024657,2]
[323256075,1713851447990,-502.66847149,0.00024657,2]
[323256076,1713851447999,-500.0,0.00024657,2]
[323256077,1713851448008,-504.30450265,0.00024657,2]
[323256078,1713851448018,-500.0,0.00024657,2]
[323256079,1713851448028,-506.59114687,0.00024657,2]
[323256080,1713851448038,-525.84477233,0.00024657,2]
[323256081,1713851448048,-502.39615944,0.00024657,2]
[323256082,1713851448060,-505.17927863,0.00024657,2]
[323256083,1713851448070,-500.0,0.00024657,2]
[323256084,1713851448079,-500.0,0.00024657,2]
[323256085,1713851448088,-500.30332827,0.00024657,2]
[323256086,1713851448097,-529.5163839,0.00024657,2]
[323256087,1713851448106,-2655.4,0.00024657,2]
[323256088,1713851448114,-510.27314984,0.00024657,2]
[323256089,1713851448123,-503.59515724,0.00024657,2]
[323256090,1713851448134,-623.45220294,0.00024657,2]
[323256091,1713851448143,-500.0,0.00024657,2]
[323256092,1713851448154,-4014.24,0.00024657,2]
[323256093,1713851448163,-4014.24,0.00024657,2]
[323256094,1713851448173,-4014.24,0.00024657,2]
[323256095,1713851448182,-4014.24,0.00024657,2]
[323256096,1713851448192,-4014.24,0.00024657,2]
[323256097,1713851448201,-4014.24,0.00024657,2]
[323256098,1713851448211,-4014.24,0.00024657,2]
[323256099,1713851448221,-4014.24,0.00024657,2]
[323256100,1713851448231,-4014.24,0.00024657,2]
[323256101,1713851448241,-4014.24,0.00024657,2]
[323256102,1713851448250,-4014.24,0.00024657,2]
[323256103,1713851448259,-4014.24,0.00024657,2]
[323256104,1713851448269,-4014.24,0.00024657,2]
[323256105,1713851448278,-4014.24,0.00024657,2]
[323256106,1713851448288,-500.0,0.00024657,2]
[323256107,1713851448296,-4014.24,0.00024657,2]
[323256108,1713851448305,-4014.24,0.00024657,2]
[323256109,1713851448315,-500.0,0.00024657,2]
[323256110,1713851448323,-4014.24,0.00024657,2]
[323256111,1713851448332,-4014.24,0.00024657,2]
[323256112,1713851448342,-4014.24,0.00024657,2]
[323256113,1713851448351,-4014.24,0.00024657,2]
[323256114,1713851448360,-4014.24,0.00024657,2]
[323256115,1713851448369,-4014.24,0.00024657,2]
[323256116,1713851448379,-4014.24,0.00024657,2]
[323256117,1713851448387,-4014.38427411,0.00024657,2]
[323256118,1713851448396,-528.20526821,0.00024657,2]
[323256119,1713851448405,-258.87500576,0.00024657,2]
[323256120,1713851448414,-504.62336992,0.00024657,2]
[323256121,1713851448423,-520.86630522,0.00024657,2]
[323256122,1713851448432,-503.33638088,0.00024657,2]
[323256123,1713851448441,-501.65743386,0.00024657,2]
[323256124,1713851448450,-500.0,0.00024657,2]
[323256125,1713851448459,-500.0,0.00024657,2]
[323256126,1713851448468,-736.04,0.00024657,2]
[323256127,1713851448477,-500.0,0.00024657,2]
[323256128,1713851448486,-500.0,0.00024657,2]
[323256129,1713851448496,-509.33541501,0.00024657,2]
[323256130,1713851448505,-507.52032846,0.00024657,2]
[323256131,1713851448519,-501.79405038,0.00024657,2]
[323256132,1713851448528,-512.31172289,0.00024657,2]
[323256133,1713851448537,-507.49136665,0.00024657,2]
[323256134,1713851448546,-500.0,0.00024657,2]
[323256135,1713851448644,-501.51564391,0.00024657,2]
[323256136,1713851448653,-546.94062832,0.00024657,2]
[323256137,1713851448663,-605.09301288,0.00024657,2]
[323256138,1713851448672,-505.11571383,0.00024657,2]
[323256139,1713851448681,-500.0,0.00024657,2]
[323256140,1713851448690,-1122.49,0.00024657,2]
[323256141,1713851448699,-610.52,0.00024657,2]
[323256142,1713851448708,-629.0,0.00024657,2]
[323256143,1713851448717,-505.62503445,0.00024657,2]
[323256144,1713851448725,-500.0,0.00024657,2]
[323256145,1713851448735,-500.0,0.00024657,2]
[323256146,1713851448744,-508.08515549,0.00024657,2]
[323256147,1713851448753,-500.0,0.00024657,2]
[323256148,1713851448763,-500.0,0.00024657,2]
[323256149,1713851448772,-500.0,0.00024657,2]
[323256150,1713851448782,-500.0,0.00024657,2]
[323256151,1713851448791,-500.0,0.00024657,2]
[323256152,1713851448800,-500.0,0.00024657,2]
[323256153,1713851448810,-500.0,0.00024657,2]
[323256154,1713851448819,-2864.36,0.00024657,2]
[323256155,1713851448828,-504.10324953,0.00024657,2]
[323256156,1713851448838,-500.0,0.00024657,2]
[323256157,1713851448847,-500.0,0.00024657,2]
[323256158,1713851448856,-513.60589024,0.00024657,2]
[323256159,1713851448865,-3569.9,0.00024657,2]
[323256160,1713851448874,-672.27,0.00024657,2]
[323256161,1713851448885,-501.15045271,0.00024657,2]
[323256162,1713851448894,-503.38907478,0.00024657,2]
[323256163,1713851448903,-553.32709877,0.00024657,2]
[323256164,1713851448912,-564.8974916,0.00024657,2]
[323256165,1713851448922,-502.75744526,0.00024657,2]
[323256166,1713851448931,-500.0,0.00024657,2]
[323256167,1713851448940,-1726.59,0.00024657,2]
[323256168,1713851448950,-500.7113275,0.00024657,2]
[323256169,1713851448959,-502.73283615,0.00024657,2]
[323256170,1713851448968,-500.0,0.00024657,2]
[323256171,1713851448977,-500.0,0.00024657,2]
[323256172,1713851448986,-500.0,0.00024657,2]
[323256173,1713851448996,-500.0,0.00024657,2]
[323256174,1713851449005,-1996.49,0.00024657,2]
[323256175,1713851449014,-503.74861057,0.00024657,2]
[323256176,1713851449023,-505.59677586,0.00024657,2]
[323256177,1713851449033,-623.46,0.00024657,2]
[323256178,1713851449042,-500.0,0.00024657,2]
[323256179,1713851449051,-503.57418517,0.00024657,2]
[323256180,1713851449060,-500.0,0.00024657,2]
[323256181,1713851449070,-500.0,0.00024657,2]
[323256182,1713851449079,-601.56,0.00024657,2]
[323256183,1713851449088,-502.13405602,0.00024657,2]
[323256184,1713851449097,-878.92,0.00024657,2]
[323256185,1713851449106,-500.0,0.00024657,2]
[323256186,1713851449116,-979.91,0.00024657,2]
[323256187,1713851449126,-500.0,0.00024657,2]
[323256188,1713851449136,-200.0,0.00024658,15]
[323256189,1713851449145,-380.0,0.00024658,2]
[323256190,1713851449154,-417.0,0.00024915,2]
[323256191,1713851449163,-210.641,0.00024915,2]
[323256192,1713851449172,-1060.54900751,0.00024929,2]
[323256193,1713851449182,-674.27496358,0.00024929,2]
[323256194,1713851449191,-266.14762847,0.00024929,2]
[323256195,1713851449200,-241.71354852,0.00024929,2]
[323256196,1713851449209,-200.23441351,0.00024929,2]
[323256197,1713851449218,-499.86736632,0.00024929,2]
[323256198,1713851449227,-611.92869404,0.00024929,2]
[323256199,1713851449237,-195.29251543,0.00024929,2]
[323256200,1713851449246,-586.71348766,0.00024929,2]
[323256201,1713851449256,-254.9061728,0.00024929,2]
[323256202,1713851449265,-214.4436404,0.00024929,2]
[323256203,1713851449274,-240.40652219,0.00024929,2]
[323256204,1713851449286,-199.70982181,0.00024929,2]
[323256205,1713851449296,-186.0270783,0.00024929,2]
[323256206,1713851449306,-340.48047753,0.0002493,2]
[323256207,1713851449316,-155.51593209,0.0002493,2]
[323256208,1713851449326,-274.99317962,0.0002493,2]
[323256209,1713851449335,-155.34744379,0.0002493,2]
[323256210,1713851449346,-530.9250672,0.0002493,2]
[323256211,1713851449356,-158.20425313,0.0002493,2]
[323256212,1713851449366,-1535.92962713,0.0002493,2]
[323256213,1713851449376,-151.0,0.0002493,2]
[323256214,1713851449387,-500.0,0.00024931,2]
[323256215,1713851449396,-500.0,0.00024931,2]
[323256216,1713851449405,-500.0,0.00024931,2]
[323256217,1713851449415,-512.94220683,0.00024931,2]
[323256218,1713851449425,-500.0,0.00024931,2]
[323256219,1713851449436,-501.19297863,0.00024931,2]
[323256220,1713851449447,-1008.54,0.00024931,2]
[323256221,1713851449459,-500.0,0.00024931,2]
[323256222,1713851449469,-500.0,0.00024931,2]
[323256223,1713851449480,-500.0,0.00024931,2]
[323256224,1713851449491,-151.568898,0.00024931,2]
[323256225,1713851449500,-543.49168618,0.00024931,2]
[323256226,1713851449513,-524.91606597,0.00024931,2]
[323256227,1713851449523,-151.0,0.00024931,2]
[323256228,1713851449533,-375.74685873,0.00024931,2]
[323256229,1713851449543,-509.28914217,0.00024931,2]
[323256230,1713851449554,-1035.7,0.00024931,2]
[323256231,1713851449565,-500.0,0.00024931,2]
[323256232,1713851449575,-500.10854789,0.00024931,2]
[323256233,1713851449584,-500.0,0.00024931,2]
[323256234,1713851449595,-504.23048148,0.00024931,2]
[323256235,1713851449605,-544.43,0.00024931,2]
[323256236,1713851449614,-542.07,0.00024931,2]
[323256237,1713851449624,-500.0,0.00024931,2]
[323256238,1713851449634,-155.85948495,0.00024931,2]
[323256239,1713851449644,-423.18,0.00024931,2]
[323256240,1713851449653,-500.0,0.00024931,2]
[323256241,1713851449664,-500.0,0.00024931,2]
[323256242,1713851449673,-180.65624696,0.00024931,2]
[323256243,1713851449684,-613.27473062,0.00024931,2]
[323256244,1713851449693,-500.0,0.00024931,2]
[323256245,1713851449703,-500.0,0.00024931,2]
[323256246,1713851449712,-151.0,0.00024931,2]
[323256247,1713851449722,-188.60555287,0.00024931,2]
[323256248,1713851449731,-590.40921536,0.00024931,2]
[323256249,1713851449740,-500.0,0.00024931,2]
[323256250,1713851449749,-500.0,0.00024931,2]
[323256251,1713851449759,-835.475349,0.00024931,2]
[323256252,1713851449768,-501.90122392,0.00024931,2]
[323256253,1713851449777,-578.73,0.00024931,2]
[323256254,1713851449786,-835.475349,0.00024931,2]
[323256255,1713851449796,-500.0,0.00024931,2]
[323256256,1713851449805,-500.0,0.00024931,2]
[323256257,1713851449815,-151.0,0.00024931,2]
[323256258,1713851449824,-500.0,0.00024931,2]
[323256259,1713851449833,-518.76254653,0.00024931,2]
[323256260,1713851449843,-666.93,0.00024931,2]
[323256261,1713851449853,-500.0,0.00024931,2]
[323256262,1713851449863,-504.91149487,0.00024931,2]
[323256263,1713851449872,-534.61,0.00024931,2]
[323256264,1713851449882,-500.0,0.00024931,2]
[323256265,1713851449891,-369.48755002,0.00024931,2]
[323256266,1713851449901,-500.0,0.00024931,2]
[323256267,1713851449910,-286.25517299,0.00024931,2]
[323256268,1713851449919,-500.0,0.00024931,2]
[323256269,1713851449928,-500.39511632,0.00024931,2]
[323256270,1713851449937,-500.0,0.00024931,2]
[323256271,1713851449946,-500.0,0.00024931,2]
[323256272,1713851449955,-500.0,0.00024931,2]
[323256273,1713851449964,-2302.202585,0.00024931,2]
[323256274,1713851449973,-500.0,0.00024931,2]
[323256275,1713851449982,-501.7873865,0.00024931,2]
[323256276,1713851449991,-500.0,0.00024931,2]
[323256277,1713851450000,-151.0,0.00024931,2]
[323256278,1713851450009,-2302.202585,0.00024931,2]
[323256279,1713851450018,-503.19335245,0.00024931,2]
[323256280,1713851450027,-500.0,0.00024931,2]
[323256281,1713851450036,-424.65030402,0.00024931,2]
[323256282,1713851450045,-500.0,0.00024931,2]
[323256283,1713851450054,-515.09969793,0.00024931,2]
[323256284,1713851450065,-500.0,0.00024931,2]
[323256285,1713851450076,-500.0,0.00024931,2]
[323256286,1713851450086,-500.0,0.00024931,2]
[323256287,1713851450095,-848.47,0.00024931,2]
[323256288,1713851450104,-533.95198972,0.00024931,2]
[323256289,1713851450115,-514.09278704,0.00024931,2]
[323256290,1713851450125,-500.0,0.00024931,2]
[323256291,1713851450137,-500.0,0.00024931,2]
[323256292,1713851450146,-500.0,0.00024931,2]
[323256293,1713851450157,-506.24756872,0.00024931,2]
[323256294,1713851450168,-500.0,0.00024931,2]
[323256295,1713851450178,-500.0,0.00024931,2]
[323256296,1713851450187,-424.21803531,0.00024931,2]
[323256297,1713851450196,-595.18,0.00024931,2]
[323256298,1713851450206,-500.0,0.00024931,2]
[323256299,1713851450216,-500.0,0.00024931,2]
[323256300,1713851450226,-500.0,0.00024931,2]
[323256301,1713851450236,-500.0,0.00024931,2]
[323256302,1713851450246,-576.84,0.00024931,2]
[323256303,1713851450255,-535.2,0.00024931,2]
[323256304,1713851450266,-500.0,0.00024931,2]
[323256305,1713851450277,-600.05,0.00024931,2]
[323256306,1713851450287,-499.45522443,0.00024931,2]
[323256307,1713851450297,-501.73601306,0.00024931,2]
[323256308,1713851450308,-515.01189313,0.00024931,2]
[323256309,1713851450318,-500.0,0.00024931,2]
[323256310,1713851450327,-500.0,0.00024931,2]
[323256311,1713851450338,-500.0,0.00024931,2]
[323256312,1713851450348,-290.189255,0.00024931,2]
[323256313,1713851450357,-500.0,0.00024931,2]
[323256314,1713851450367,-507.09145699,0.00024931,2]
[323256315,1713851450379,-502.20233836,0.00024931,2]
[323256316,1713851450390,-500.0,0.00024931,2]
[323256317,1713851450400,-377.0184486,0.00024931,2]
[323256318,1713851450410,-505.74074216,0.00024931,2]
[323256319,1713851450420,-500.0,0.00024931,2]
[323256320,1713851450430,-1033.99,0.00024931,2]
[323256321,1713851450440,-508.34895693,0.00024931,2]
[323256322,1713851450449,-500.0,0.00024931,2]
[323256323,1713851450458,-1922.27,0.00024931,2]
[323256324,1713851450468,-500.0,0.00024931,2]
[323256325,1713851450477,-503.59514409,0.00024931,2]
[323256326,1713851450490,-390.135277,0.00024931,2]
[323256327,1713851450499,-500.0,0.00024931,2]
[323256328,1713851450508,-517.66893789,0.00024931,2]
[323256329,1713851450522,-390.135277,0.00024931,2]
[323256330,1713851450532,-503.38630101,0.00024931,2]
[323256331,1713851450541,-502.37916465,0.00024931,2]
[323256332,1713851450551,-261.45683567,0.00024931,2]
[323256333,1713851450561,-542.45246499,0.00024931,2]
[323256334,1713851450571,-500.0,0.00024931,2]
[323256335,1713851450580,-506.58520611,0.00024931,2]
[323256336,1713851450681,-346.63458445,0.00024931,2]
[323256337,1713851450692,-500.0,0.00024931,2]
[323256338,1713851450702,-504.82991669,0.00024931,2]
[323256339,1713851450712,-500.0,0.00024931,2]
[323256340,1713851450721,-500.0,0.00024931,2]
[323256341,1713851450731,-582.08,0.00024931,2]
[323256342,1713851450742,-500.76396161,0.00024931,2]
[323256343,1713851450752,-500.68030474,0.00024931,2]
[323256344,1713851450762,-151.0,0.00024931,2]
[323256345,1713851450772,-500.0,0.00024931,2]
[323256346,1713851450782,-500.0,0.00024931,2]
[323256347,1713851450792,-512.05923932,0.00024931,2]
[323256348,1713851450802,-500.0,0.00024931,2]
[323256349,1713851450812,-501.96053296,0.00024931,2]
[323256350,1713851450821,-500.0,0.00024931,2]
[323256351,1713851450831,-502.58048142,0.00024931,2]
[323256352,1713851450842,-500.0,0.00024931,2]
[323256353,1713851450851,-500.0,0.00024931,2]
[323256354,1713851450861,-581.30344202,0.00024931,2]
[323256355,1713851450871,-512.92,0.00024931,2]
[323256356,1713851450882,-357.67034614,0.00024931,2]
[323256357,1713851450891,-500.0,0.00024931,2]